Cogmind - Beta 13 @@@ ROGUE MODE // 2024.06.08 @ 12:31:14 Player: pakman Result: Self-destructed Performance ------------- Evolutions (1) 500 Regions Visited (2) 400 Robots Destroyed (30) 150 Value Destroyed (649) 649 Prototype IDs (2) 40 Alien Tech Used (0) 0 Bonus (0) 0 TOTAL SCORE: 1739 Bonus ------- None Cogmind --------- Core Integrity 210/400 Matter 228/300 Energy 1/100 System Corruption 0% Temperature Cool (6) Movement Rolling (101) Ox1 Location -9/Materials Parts ------- > --- POWER (1) -------- (None) > --- PROPULSION (3) --- Wheel Wheel Compact Wheel > --- UTILITY (3) ------ High-capacity Storage Unit Terrain Scan Processor ECM Suite > --- WEAPON (2) ------- Medium Laser > --- INVENTORY (20) --- Signal Interpreter Heavy Assault Rifle Autogun Rocket Launcher Mining Laser Mining Laser Peak State ------------ > --- POWER ------------ Light Nuclear Core > --- PROPULSION ------- Wheel Wheel Compact Wheel > --- UTILITY ---------- High-capacity Storage Unit Improved Terrain Scanner Terrain Scan Processor > --- WEAPON ----------- Light Assault Rifle Mining Laser > --- INVENTORY -------- Wheel Signal Interpreter ECM Suite Medium Laser Heavy Assault Rifle Grenade Launcher Rocket Launcher Mining Laser [Rating: 15] Favorites ----------- Power Light Ion Engine Engine Light Ion Engine Power Core Light Nuclear Core Propulsion Wheel Wheel Wheel Utility High-capacity Storage Unit Device Improved Terrain Scanner Storage High-capacity Storage Unit Processor Terrain Scan Processor Weapon Light Assault Rifle Energy Gun Medium Laser Ballistic Gun Light Assault Rifle Launcher Rocket Launcher Special Weapon Mining Laser Build | -11 -10 -9 ------- Run | Yrd Mat Mat Slots Evolved 2 | . . 2 Power . | . . . Propulsion 1 | . . 1 Utility 1 | . . 1 Weapon . | . . . Parts Attached 35 | 7 12 16 Power 4 | 1 1 2 Engine 3 | 1 1 1 Core 1 | . . 1 Reactor . | . . . Propulsion 10 | 2 3 5 Treads . | . . . Leg . | . . . Wheel 10 | 2 3 5 Hover . | . . . Flight . | . . . Utility 6 | 2 2 2 Device 2 | 1 . 1 Storage 3 | 1 2 . Processor 1 | . . 1 Hackware . | . . . Protection . | . . . Artifact . | . . . Weapon 15 | 2 6 7 Energy Gun 3 | . . 3 Energy Cannon . | . . . Ballistic Gun 6 | 2 3 1 Ballistic Cannon . | . . . Launcher 1 | . . 1 Special Weapon 5 | . 3 2 Impact Weapon . | . . . Slashing Weapon . | . . . Piercing Weapon . | . . . Special Melee Weapon . | . . . Unidentified Prototypes . | . . . Parts Lost 13 | . 2 11 Power 3 | . . 3 Propulsion 6 | . 2 4 Utility 1 | . . 1 Weapon 3 | . . 3 Highest Loss Streak 6 | . 1 6 To Critical Strikes . | . . . Average Slot Usage (%) 98 | . 99 96 Engine 8 | . 14 3 Core 3 | . . 7 Wheel 29 | . 27 31 Device 12 | . 14 10 Storage 12 | . 14 11 Processor 5 | . . 11 Energy Gun 4 | . . 8 Ballistic Gun 19 | . 27 11 Naked Turns . | . . . Heaviest Build 51 | 12 47 51 Greatest Support 36 | 32 32 36 Greatest Overweight (x) 2 | . 2 1 Average Overweight (x) . | . . 1 Largest Inventory Capacity 20 | 8 20 20 Average Capacity 17 | 7 15 20 Most Carried 11 | 5 11 10 Average Carried 6 | 2 7 6 Final Capacity 20 | 8 20 20 Final Carried 11 | 5 11 6 Class Distribution -------------------- 51% | Mutant 48% | Scavenger-Mutant Dominant Class ---------------- Mutant | -10/Materials Scavenger-Mutant | -9/Materials Resources | -11 -10 -9 ----------- Run | Yrd Mat Mat Matter Collected 752 | 199 381 172 Remotely . | . . . Salvage Created 918 | 85 347 486 Parts 65 | 10 30 25 Haulers Intercepted 2 | . 1 1 Recyclers Shooed . | . . . Parts Field Recycled . | . . . Retrieved Matter . | . . . Parts Self-Destructed . | . . . Prevented . | . . . Kills | -11 -10 -9 ------- Run | Yrd Mat Mat Combat Hostiles Destroyed 19 | . 8 11 Guns 15 | . 8 7 AOE 4 | . . 4 Classes Destroyed 10 | 2 6 2 Worker 3 | . 1 2 Builder 1 | . 1 . Tunneler 2 | 2 . . Hauler 2 | . 1 1 Recycler 1 | 1 . . Watcher 2 | . 2 . Swarmer 5 | . 5 . Grunt 10 | . 3 7 Duelist 1 | . . 1 Sentry 3 | . . 3 Best Kill Streak 5 | 2 3 5 Combat Bots Only 5 | . 3 5 Max Kills in Single Turn 2 | 1 1 2 Gunslinging . | . . . Exploded 2 | . . 2 Melee . | . . . Uniques/NPCs Destroyed . | . . . Combat | -11 -10 -9 -------- Run | Yrd Mat Mat Hostile Shots Fired 126 | . 50 76 Missed 27 | . 8 19 Damage Taken 1228 | . 442 786 Core 333 | . 143 190 Absorbed by Shields . | . . . Core Remaining (%) 71 | 100 42 . Volleys Fired 107 | 5 47 55 Largest 2 | 2 2 2 Hottest 120 | 40 120 100 Shots Fired 212 | 10 93 109 Gun 202 | 10 90 102 Cannon . | . . . Launcher 6 | . . 6 Special 4 | . 3 1 Kinetic 160 | 10 90 60 Thermal 46 | . 3 43 Explosive 6 | . . 6 Electromagnetic . | . . . Robot Hit Streak 17 | 2 5 17 Robot Miss Streak 5 | 1 5 3 Penetration Max . | . . . Secondary Targets . | . . . Shots Hit Robots 123 | 6 41 76 Core Hits 55 | 4 20 31 Critical Kills 1 | 1 . . Critical Parts Destroyed 1 | . 1 . Critical Strikes 6 | 1 1 4 Burn 4 | . . 4 Destroy 2 | 1 1 . Melee Attacks . | . . . Impact . | . . . Slashing . | . . . Piercing . | . . . Sneak Attacks . | . . . Combat Hostiles . | . . . Follow-up Attacks . | . . . Damage Inflicted 1652 | 57 439 1156 Guns 1216 | 57 439 720 Cannons . | . . . Explosions 436 | . . 436 Melee . | . . . Ramming . | . . . Kinetic 847 | 57 439 351 Thermal 369 | . . 369 Explosive 436 | . . 436 Electromagnetic . | . . . Impact . | . . . Slashing . | . . . Piercing . | . . . Highest Corruption . | . . . Average Corruption . | . . . Corruption Purged . | . . . Corruption Blocked . | . . . Overload Shots . | . . . Overflow Damage 24 | . . 24 Projectiles . | . . . Explosions 24 | . . 24 Melee . | . . . Knockbacks . | . . . Impact . | . . . Kinetic . | . . . Secondary . | . . . Self-Inflicted Damage 34 | . . 34 Shots 2 | . . 2 Rammed . | . . . Targets Rammed . | . . . Kicked . | . . . Crushed . | . . . Highest Temperature 154 | . 40 154 Average Temperature 39 | . 11 44 Received Heat Transfer 453 | . 102 351 Siege Activations . | . . . Robots Corrupted . | . . . Combat Hostiles . | . . . Parts Fried . | . . . Impact Corruptions . | . . . Robots Melted . | . . . Combat Hostiles . | . . . Parts Melted 2 | . . 2 Heat Transferred 1406 | . . 1406 Parts Sabotaged . | . . . Parts Stolen . | . . . Parts Stripped . | . . . Power Chain Reactions . | . . . Alert | -11 -10 -9 ------- Run | Yrd Mat Mat Peak Influence 255 | 15 143 255 Initial 22 | . 9 22 Average 78 | 6 51 112 Maximum Alert Level 1 | . . 1 Low Security (%) 99 | 100 100 98 Level 1 . | . . 1 Level 2 . | . . . Level 3 . | . . . Level 4 . | . . . Level 5 . | . . . High Security . | . . . Max Security . | . . . Squads Dispatched 1 | . . 1 Investigation . | . . . Extermination . | . . . Reinforcement 1 | . . 1 Assault . | . . . Garrison . | . . . Intercept . | . . . Searches Triggered . | . . . Construction Impeded 1 | . . 1 Haulers Reinforced . | . . . Active Scanning Responses . | . . . Cargo Convoy Interrupts . | . . . Stealth | -11 -10 -9 --------- Run | Yrd Mat Mat Distress Signals 2 | . 1 1 Communications Jammed . | . . . Distress Signals . | . . . Times Spotted 37 | . 13 24 Peak Tracking Total 5 | . 3 5 Tactical Retreats 3 | . . 3 Traps | -11 -10 -9 ------- Run | Yrd Mat Mat Traps Triggered 1 | . 1 . Indirectly . | . . . Trap Hack Attempts . | . . . Triggered . | . . . Disarmed . | . . . Reprogrammed 5 | . 5 . Reused 1 | . 1 . Traps Extracted . | . . . Installed . | . . . Triggered 1 | . 1 . Machines | -11 -10 -9 ---------- Run | Yrd Mat Mat Machines Disabled . | . . . Max in Single Turn . | . . . Machines Repaired . | . . . Machines Dismantled . | . . . Machines Sabotaged . | . . . Overloaded Fab Kills . | . . . Hacking | -11 -10 -9 --------- Run | Yrd Mat Mat Machines Accessed 12 | . 6 6 Terminals 9 | . 5 4 Fabricators . | . . . Repair Stations . | . . . Recycling Units 2 | . 1 1 Scanalyzers 1 | . . 1 Garrison Access . | . . . Total Hacks 51 | . 25 26 Successful 33 | . 15 18 Failed 18 | . 10 8 Catastrophic 3 | . 2 1 Database Lockouts . | . . . Manual 19 | . 13 6 Terminals 35 | . 22 13 Fabricators . | . . . Repair Stations . | . . . Recycling Units 4 | . 3 1 Scanalyzers 12 | . . 12 Garrison Access . | . . . Terminal Hacks 10 | . 8 2 Robot Analysis 1 | . . 1 Prototype ID Bank 1 | . 1 . Alert Level 1 | . 1 . Unreport Threat 1 | . 1 . Locate Traps 2 | . 2 . Reprogram Traps 2 | . 2 . Recall Assault 1 | . . 1 Zone Layout 1 | . 1 . Fabricator Hacks . | . . . Repair Station Hacks . | . . . Recycling Unit Hacks 3 | . 2 1 Report Inventory 2 | . 1 1 Retrieve Components 1 | . 1 . Scanalyzer 12 | . . 12 Insert Component 6 | . . 6 Analyze 6 | . . 6 Garrison Access Hacks . | . . . Unauthorized Hacks 8 | . 5 3 Terminals 8 | . 5 3 Botnet 8 | . 5 3 Fabricators . | . . . Repair Stations . | . . . Recycling Units . | . . . Scanalyzers . | . . . Garrison Access . | . . . Data Cores Recovered . | . . . Used . | . . . Hacking Detections 9 | . 5 4 Full Trace Events 2 | . 2 . Feedback Events . | . . . Feedback Blocked . | . . . Robot Schematics Acquired . | . . . Robots Built . | . . . Authchips . | . . . Time . | . . . Total Robot Build Rating . | . . . Part Schematics Acquired 6 | . . 6 Parts Built . | . . . Authchips . | . . . Time . | . . . Total Part Build Rating . | . . . Parts Repaired . | . . . Time . | . . . Parts Recycled . | . . . Recycled Matter . | . . . Retrieved Matter . | . . . Retrieved Components 7 | . 7 . Parts Scanalyzed 6 | . . 6 Part Schematics Acquired 6 | . . 6 Parts Damaged . | . . . Bothacking | -11 -10 -9 ------------ Run | Yrd Mat Mat Used RIF Installer . | . . . Robots Hacked . | . . . Non-combat . | . . . Combat . | . . . Robot Hacks Applied . | . . . Relay Couplers Released . | . . . Fabnet Peak Effective % . | . . . Robots Rewired . | . . . Allies Hacked . | . . . Hacks Repelled . | . . . Allies | -11 -10 -9 -------- Run | Yrd Mat Mat Total Allies . | . . . Largest Group . | . . . Highest-Rated Group . | . . . Highest-Rated Ally . | . . . Total Orders . | . . . Ally Attacks . | . . . Total Damage . | . . . Kills . | . . . Allies Corrupted . | . . . Allies Melted . | . . . Intel | -11 -10 -9 ------- Run | Yrd Mat Mat Robot Analysis Total 1 | . . 1 Derelict Logs Recovered . | . . . Drone Launches . | . . . Drone Recoveries . | . . . Exploration | -11 -10 -9 ------------- Run | Yrd Mat Mat Turns Passed 1499 | 72 704 723 Spaces Moved 1020 | 44 509 467 Core 1 | 1 . . Treads . | . . . Legs . | . . . Wheels 1019 | 43 509 467 Hover . | . . . Flight . | . . . Fastest Speed 50 | 50 90 101 Average Speed 101 | 98 101 101 Slowest Speed 130 | 100 130 105 Overloaded Moves . | . . . Propulsion Burnouts . | . . . Robots Hopped . | . . . Cave-ins Triggered . | . . . Exploration Rate (%) 39 | 3 71 45 Regions Visited 2 Branch Regions . Pre-discovered Areas . | . . . Known Exits Taken . | . . . Unknown Exits Taken 2 | 1 1 . Scrap Searched . | . . . Spaces Dug 4 | . 3 1 Terrain Destroyed 32 | . 3 29 Melee . | . . . Projectile 4 | . 3 1 AOE 28 | . . 28 Terrain Rammed . | . . . Walls Destroyed . | . . . Machines Disabled . | . . . Actions | -11 -10 -9 --------- Run | Yrd Mat Mat Total 1275 | 60 602 613 Wait 94 | . 25 69 Move 1018 | 43 508 467 Hop . | . . . Pick Up 17 | 5 7 5 Fast Attach 8 | 7 . 1 Attach 12 | . 2 10 Detach . | . . . Swap 15 | . 10 5 Drop 4 | . 3 1 Fire 107 | 5 47 55 Melee . | . . . Ram . | . . . Kick . | . . . Crush . | . . . Escape Stasis . | . . . Rewire . | . . . Trap . | . . . Miscellaneous . | . . . Route ------- -11/Scrapyard -10/Materials (discovered 3 exits: *Mat / [*Min x2]) -9/Materials (discovered 1 exit: [*Min]) History --------- Turn | Location | Event 19 | -11/Scrapyard | Discovered new exit (range 16) 73 | -11/Scrapyard | Entered Materials 225 | -10/Materials | Discovered new exit (range 17) 225 | -10/Materials | Discovered new exit (range 17) 317 | -10/Materials | Build established: Mutant 424 | -10/Materials | Discovered new exit (range 15) 632 | -10/Materials | Core integrity fell below 50% 777 | -10/Materials | Entered another Materials area 777 | -9/Materials | Evolved 2 slots: Propulsion x1, Utility x1 917 | -9/Materials | Lost 6 parts (1p3n2w) 1073 | -9/Materials | Build established: Scavenger-Mutant 1482 | -9/Materials | Discovered new exit (range 13) 1500 | -9/Materials | Self-destructed Last Messages --------------- Scanning: Autogun... Schematic downloaded. 01236_ A-02 Transporter suffers critical hit (Burn). 01281_ G-34 Mercenary suffers critical hit (Burn). 01285_ G-34 Mercenary overheating. 01288_ G-34 Mercenary heat short circuits Aluminum Leg. 01290_ G-34 Mercenary heat spikes uncontrollably. 01298_ G-34 Mercenary heat damages Ion Engine. 01305_ G-34 Mercenary heat damages Sml. Laser. 01307_ Broken Aluminum Leg melted. 01307_ G-34 Mercenary destroyed. 01311_ Acquired 34 matter. 01458_ Connecting with Terminal... >>Recall(Assault) Establishing remote squad link... No tasked assault squads found. 01466_ Lgt. Nuclear Core destroyed. 01478_ Lgt. Assault Rifle destroyed. 01482_ EXIT=FOUND 01491_ K-01 Serf cleans the Machine. Map ----- +----------------------------------------------------+ | ?????????????????????????????########????# | | ?????????????????????????????# #????#####+### | | ?????????????????????????????# ""######### ## | | ?????????????????????????????# Y"# ! # # | | ?????????????????????????????# ""# "T" + / | | ?????????????????????????????# # # # | | ???????????????????????####### ??# ####### ## | | ???????????????????????# ##+############ # | | ???????????????????????# | | ???????????????????????# | | ???????????????????????# | | ???????????????????????# ####+##+####### # | | ???????????????????????## ##?# ????######+### | | ????????????????????????# #??? !!!??# | | ????????????????????????# #??? !!! # | | ????????????????????????# #???? !!! # | | ???????????????????????## ####? # | | ???????????????????????# "#?? """?# """ """ | | ???????????????????????# ""#?? """?# """ """ | | ???????????????????????# ||#??? ""??# """ """ | | ???????????????????????# < ""#??? ??# | | ???????????????????????# k||#???#+#??########## | | ???????????????????????# ""#???# #????????##?# | | ???????????????????????# "#???# ############# | | ???????????????????????## ####???# ## + | | ????????????????????????#@ g######## ## ### | | ???????????????????? + "" #?# # | | ???????????????????? a g k w # """### # | | ???????????????????"" """ """ # S"### # | | ?????????????????""""" """"" """"" # #?# # | | ??????????????????"""" """"" """"" ##+####### # | | ???????????????? """"" """"" """"" ## # # | | ??????????????? """ """ """ # # # | | ???????????????? # ## | | ????????????? ?? w # | | ?????????????? ##### | | ??????????????# | | ??????????????# | | ??????????????# """ """ """ """ | | ??????????????# """ """ """ """ | | ??????????????# """ """ """ """ | | ??????????????# ##+#####+## | | ??????????????+ # ## | | ??????????????# # """ ## | | ??????????????#+#+########+######### # """ #? | | ?????????????????????# #???# # """ ## | | ?????????????????????# #???# + ## | | ?????????????????????# #???# # """ ## | | ?????????????????????# """ #???# # """ ## | | ?????????????????????# """ "" ##### # """ #? | +----------------------------------------------------+ Best States ------------- Heat Dissipation 28 Energy Generation 14 Energy Capacity 160 Matter Stores 300 Matter Capacity 300 Sight Range 16 Terrain Scan Range 16 Terrain Scan Density 85 ECM Strength 1 Evasion (%) 42 Item Schematics ----------------- Hvy. Assault Rifle | -9/Materials | Scanalyzed Rocket Launcher | -9/Materials | Scanalyzed Signal Interpreter | -9/Materials | Scanalyzed ECM Suite | -9/Materials | Scanalyzed Mining Laser | -9/Materials | Scanalyzed Autogun | -9/Materials | Scanalyzed Robot Schematics ------------------ None Fabricated ------------ Nothing Alien Tech Used ----------------- None Achievements -------------- None Challenges ------------ None Game ------ Seed UtilityCloakingSplitter Manual? 0 Play Time 00:18:47 Cumulative 41.6 hours Start 2024.06.08 @ 12:12:31 End 2024.06.08 @ 12:31:14 Sessions 1 Manual Loads 0 Difficulty Rogue Special Mode None Game No. 48 Rogue 48 Adventurer 0 Explorer 0 Win Type - Total 0 Types 0/0/0/0/0/0/0/0/0 Lore% 29 Gallery% 29 Achievement% 24 Wizard Run 0 Options --------- Layout 0 ASCII 0 Keyboard 1 Movement Numpad Keybinds 0 Fullscreen 2 Font 18/SmallcapsGlow Map View 76x50 Zoom Use 0% Tactical HUD 1 Map Filters NONE Filters NONE Steam 1 RUN: a7088bfb-28bf-49a9-a0eb-5a12af5beff2